fUST/lending_fUST_20260620
["ID","MTS","AMOUNT","RATE_DAILY","PERIOD"]
[425814710,1781931762000,-512.68294395,0.00016438,2]
[425814693,1781931762000,-508.94253164,0.00016438,2]
[425814714,1781931762000,-511.03189123,0.00016438,2]
[425814692,1781931762000,-512.01729439,0.00016438,2]
[425814711,1781931762000,-500.0,0.00016438,2]
[425814712,1781931762000,-508.93561466,0.00016438,2]
[425814709,1781931762000,-510.54823233,0.00016438,2]
[425814706,1781931762000,-525.55832796,0.00016438,2]
[425814707,1781931762000,-511.3903098,0.00016438,2]
[425814708,1781931762000,-506.46941253,0.00016438,2]
[425814701,1781931762000,-508.30823999,0.00016438,2]
[425814704,1781931762000,-525.9265077,0.00016438,2]
[425814713,1781931762000,-539.9632789,0.00016438,2]
[425814703,1781931762000,-526.48307504,0.00016438,2]
[425814705,1781931762000,-513.54725349,0.00016438,2]
[425814696,1781931762000,-500.86374216,0.00016438,2]
[425814695,1781931762000,-496.33301974,0.00016438,2]
[425814697,1781931762000,-516.30892935,0.00016438,2]
[425814694,1781931762000,-505.03470792,0.00016438,2]
[425814700,1781931762000,-510.9494268,0.00016438,2]
[425814699,1781931762000,-526.81700879,0.00016438,2]
[425814698,1781931762000,-509.70084312,0.00016438,2]
[425814702,1781931762000,-527.57629895,0.00016438,2]
[425814726,1781931763000,-513.16914458,0.00016438,2]
[425814734,1781931763000,-506.54767865,0.00016438,2]
[425814731,1781931763000,-505.78282671,0.00016438,2]
[425814727,1781931763000,-520.12454285,0.00016438,2]
[425814729,1781931763000,-523.03292888,0.00016438,2]
[425814730,1781931763000,-509.71146816,0.00016438,2]
[425814732,1781931763000,-500.0,0.00016438,2]
[425814724,1781931763000,-510.01573652,0.00016438,2]
[425814721,1781931763000,-500.0,0.00016438,2]
[425814725,1781931763000,-510.8036606,0.00016438,2]
[425814722,1781931763000,-500.0,0.00016438,2]
[425814720,1781931763000,-505.85679153,0.00016438,2]
[425814719,1781931763000,-521.72565735,0.00016438,2]
[425814716,1781931763000,-500.0,0.00016438,2]
[425814718,1781931763000,-533.87399976,0.00016438,2]
[425814715,1781931763000,-211.9740772,0.00016438,2]
[425814717,1781931763000,-560.04453332,0.00016438,2]
[425814733,1781931763000,-508.80916834,0.00016438,2]
[425814723,1781931763000,-503.90576059,0.00016438,2]
[425814735,1781931763000,-482.10400123,0.00016438,2]
[425814728,1781931763000,-500.0,0.00016438,2]
[425814737,1781931763000,-509.74331112,0.00016438,2]
[425814738,1781931763000,-510.93026609,0.00016438,2]
[425814757,1781931763000,-500.0,0.00016438,2]
[425814756,1781931763000,-500.0,0.00016438,2]
[425814753,1781931763000,-514.86078038,0.00016438,2]
[425814754,1781931763000,-524.90620671,0.00016438,2]
[425814751,1781931763000,-512.58122101,0.00016438,2]
[425814752,1781931763000,-504.57764115,0.00016438,2]
[425814750,1781931763000,-508.24299335,0.00016438,2]
[425814749,1781931763000,-512.96651832,0.00016438,2]
[425814747,1781931763000,-500.0,0.00016438,2]
[425814755,1781931763000,-513.65333354,0.00016438,2]
[425814748,1781931763000,-513.28372054,0.00016438,2]
[425814744,1781931763000,-500.0,0.00016438,2]
[425814746,1781931763000,-511.81626963,0.00016438,2]
[425814741,1781931763000,-525.29863635,0.00016438,2]
[425814742,1781931763000,-527.11253045,0.00016438,2]
[425814743,1781931763000,-518.97958752,0.00016438,2]
[425814740,1781931763000,-527.47923598,0.00016438,2]
[425814739,1781931763000,-500.0,0.00016438,2]
[425814736,1781931763000,-370.13096489,0.00016438,2]
[425814745,1781931763000,-504.73030469,0.00016438,2]
[425814770,1781931764000,-511.56826659,0.00016438,2]
[425814769,1781931764000,-511.37060423,0.00016438,2]
[425814773,1781931764000,-510.02937206,0.00016438,2]
[425814772,1781931764000,-510.66174017,0.00016438,2]
[425814774,1781931764000,-849.63,0.00016438,2]
[425814768,1781931764000,-511.93003113,0.00016438,2]
[425814771,1781931764000,-508.36598379,0.00016438,2]
[425814767,1781931764000,-531.7640127,0.00016438,2]
[425814763,1781931764000,-525.70811255,0.00016438,2]
[425814766,1781931764000,-496.28477211,0.00016438,2]
[425814764,1781931764000,-513.05455974,0.00016438,2]
[425814762,1781931764000,-503.12424029,0.00016438,2]
[425814760,1781931764000,-513.06356658,0.00016438,2]
[425814761,1781931764000,-504.41703027,0.00016438,2]
[425814759,1781931764000,-510.25571033,0.00016438,2]
[425814758,1781931764000,-504.46620663,0.00016438,2]
[425814776,1781931764000,-504.19364873,0.00016438,2]
[425814765,1781931764000,-509.15624272,0.00016438,2]
[425814775,1781931764000,-500.0,0.00016438,2]
[425814777,1781931764000,-525.62274495,0.00016438,2]
[425814792,1781931764000,-508.22974832,0.00016438,2]
[425814778,1781931764000,-502.11095141,0.00016438,2]
[425814798,1781931764000,-510.48508729,0.00016438,2]
[425814795,1781931764000,-509.06964185,0.00016438,2]
[425814796,1781931764000,-500.88817964,0.00016438,2]
[425814793,1781931764000,-500.0,0.00016438,2]
[425814794,1781931764000,-508.73644207,0.00016438,2]
[425814790,1781931764000,-501.65848641,0.00016438,2]
[425814791,1781931764000,-509.18788053,0.00016438,2]
[425814789,1781931764000,-502.66452583,0.00016438,2]
[425814788,1781931764000,-535.24877087,0.00016438,2]
[425814787,1781931764000,-503.37506882,0.00016438,2]
[425814783,1781931764000,-509.57994868,0.00016438,2]
[425814785,1781931764000,-524.93320611,0.00016438,2]
[425814784,1781931764000,-522.09583402,0.00016438,2]
[425814782,1781931764000,-501.21207731,0.00016438,2]
[425814781,1781931764000,-500.0,0.00016438,2]
[425814780,1781931764000,-506.75658056,0.00016438,2]
[425814779,1781931764000,-500.0,0.00016438,2]
[425814786,1781931764000,-487.8121507,0.00016438,2]
[425814797,1781931764000,-500.0,0.00016438,2]
[425814816,1781931765000,-569.54180992,0.00016438,2]
[425814810,1781931765000,-504.27700492,0.00016438,2]
[425814814,1781931765000,-510.73021901,0.00016438,2]
[425814818,1781931765000,-592.89395321,0.00016438,2]
[425814817,1781931765000,-623.92540904,0.00016438,2]
[425814813,1781931765000,-536.94721004,0.00016438,2]
[425814819,1781931765000,-508.14139986,0.00016438,2]
[425814811,1781931765000,-500.95497909,0.00016438,2]
[425814815,1781931765000,-504.70772297,0.00016438,2]
[425814812,1781931765000,-526.56771894,0.00016438,2]
[425814799,1781931765000,-500.0,0.00016438,2]
[425814809,1781931765000,-505.58546892,0.00016438,2]
[425814807,1781931765000,-505.74587824,0.00016438,2]
[425814806,1781931765000,-554.5244992,0.00016438,2]
[425814804,1781931765000,-500.0,0.00016438,2]
[425814805,1781931765000,-506.76882878,0.00016438,2]
[425814803,1781931765000,-503.09848931,0.00016438,2]
[425814802,1781931765000,-503.98536057,0.00016438,2]
[425814800,1781931765000,-503.46169286,0.00016438,2]
[425814801,1781931765000,-510.94820869,0.00016438,2]
[425814808,1781931765000,-500.0,0.00016438,2]
[425814820,1781931765000,-534.6891074,0.00016438,2]
[425814838,1781931765000,-503.65681488,0.00016438,2]
[425814823,1781931765000,-328.63764893,0.00016438,2]
[425814821,1781931765000,-517.72048966,0.00016438,2]
[425814843,1781931765000,-520.44098236,0.00016438,2]
[425814844,1781931765000,-504.24835343,0.00016438,2]
[425814840,1781931765000,-504.43887509,0.00016438,2]
[425814842,1781931765000,-503.46001461,0.00016438,2]
[425814839,1781931765000,-551.77212077,0.00016438,2]
[425814837,1781931765000,-507.76868337,0.00016438,2]
[425814836,1781931765000,-533.33512926,0.00016438,2]
[425814835,1781931765000,-502.61052129,0.00016438,2]
[425814833,1781931765000,-500.0,0.00016438,2]
[425814841,1781931765000,-517.23043057,0.00016438,2]
[425814834,1781931765000,-522.9023224,0.00016438,2]
[425814831,1781931765000,-500.0,0.00016438,2]
[425814830,1781931765000,-503.29840799,0.00016438,2]
[425814829,1781931765000,-505.10550696,0.00016438,2]
[425814827,1781931765000,-500.84243584,0.00016438,2]
[425814828,1781931765000,-501.62680703,0.00016438,2]
[425814825,1781931765000,-523.97580368,0.00016438,2]
[425814826,1781931765000,-509.94260774,0.00016438,2]
[425814824,1781931765000,-505.21839605,0.00016438,2]
[425814832,1781931765000,-504.47502602,0.00016438,2]
[425814822,1781931765000,-520.9069405,0.00016438,2]
[425814873,1781931766000,-505.02032972,0.00016438,2]
[425814867,1781931766000,-847.29,0.00016438,2]
[425814868,1781931766000,-500.0,0.00016438,2]
[425814869,1781931766000,-500.0,0.00016438,2]
[425814870,1781931766000,-1000.0,0.00016438,2]
[425814866,1781931766000,-1720.19,0.00016438,2]
[425814864,1781931766000,-500.0,0.00016438,2]
[425814865,1781931766000,-500.0,0.00016438,2]
[425814862,1781931766000,-1828.33,0.00016438,2]
[425814872,1781931766000,-1777.37,0.00016438,2]
[425814871,1781931766000,-2879.56,0.00016438,2]
[425814874,1781931766000,-692.16,0.00016438,2]
[425814885,1781931766000,-506.87559976,0.00016438,2]
[425814877,1781931766000,-1156.05,0.00016438,2]
[425814876,1781931766000,-500.0,0.00016438,2]
[425814878,1781931766000,-500.0,0.00016438,2]
[425814879,1781931766000,-515.94542682,0.00016438,2]
[425814880,1781931766000,-509.04068708,0.00016438,2]
[425814881,1781931766000,-521.15338099,0.00016438,2]
[425814884,1781931766000,-504.12591631,0.00016438,2]
[425814883,1781931766000,-525.65315408,0.00016438,2]
[425814882,1781931766000,-500.0,0.00016438,2]
[425814886,1781931766000,-500.86417053,0.00016438,2]
[425814887,1781931766000,-500.0,0.00016438,2]
[425814888,1781931766000,-517.61164447,0.00016438,2]
[425814875,1781931766000,-1578.01,0.00016438,2]
[425814863,1781931766000,-500.0,0.00016438,2]
[425814861,1781931766000,-1148.8,0.00016438,2]
[425814860,1781931766000,-727.28,0.00016438,2]
[425814858,1781931766000,-500.0,0.00016438,2]
[425814845,1781931766000,-504.18159218,0.00016438,2]
[425814846,1781931766000,-510.0471421,0.00016438,2]
[425814848,1781931766000,-509.94794307,0.00016438,2]
[425814849,1781931766000,-505.15994503,0.00016438,2]
[425814850,1781931766000,-603.56,0.00016438,2]
[425814852,1781931766000,-506.94860319,0.00016438,2]
[425814847,1781931766000,-503.77548392,0.00016438,2]
[425814854,1781931766000,-351.5943446,0.00016438,2]
[425814853,1781931766000,-500.0,0.00016438,2]
[425814855,1781931766000,-539.35032337,0.00016438,2]
[425814856,1781931766000,-319.03861483,0.00016438,2]
[425814857,1781931766000,-500.0,0.00016438,2]
[425814859,1781931766000,-520.20675506,0.00016438,2]
[425814851,1781931766000,-506.96052331,0.00016438,2]
[425814899,1781931767000,-1208.21,0.00016438,2]
[425814906,1781931767000,-501.93909265,0.00016438,2]
[425814905,1781931767000,-1786.79,0.00016438,2]
[425814903,1781931767000,-520.57843754,0.00016438,2]
[425814904,1781931767000,-744.13,0.00016438,2]
[425814901,1781931767000,-510.26325312,0.00016438,2]
[425814902,1781931767000,-506.89476764,0.00016438,2]
[425814900,1781931767000,-525.39,0.00016438,2]
[425814897,1781931767000,-510.37288573,0.00016438,2]
[425814891,1781931767000,-364.48725564,0.00016438,2]
[425814896,1781931767000,-503.9902245,0.00016438,2]
[425814894,1781931767000,-435.86352492,0.00016438,2]
[425814895,1781931767000,-502.81798302,0.00016438,2]
[425814892,1781931767000,-525.84214678,0.00016438,2]
[425814893,1781931767000,-500.0,0.00016438,2]
[425814890,1781931767000,-455.06943625,0.00016438,2]
[425814909,1781931767000,-505.62047817,0.00016438,2]
[425814889,1781931767000,-510.9165698,0.00016438,2]
[425814898,1781931767000,-500.0,0.00016438,2]
[425814908,1781931767000,-508.12608055,0.00016438,2]
[425814907,1781931767000,-508.50039872,0.00016438,2]
[425814910,1781931767000,-505.97811601,0.00016438,2]
[425814911,1781931767000,-536.4933277,0.00016438,2]
[425814928,1781931767000,-500.0,0.00016712,2]
[425814930,1781931767000,-500.0,0.00016712,2]
[425814929,1781931767000,-500.0,0.00016712,2]
[425814927,1781931767000,-500.0,0.00016712,2]
[425814926,1781931767000,-500.0,0.00016712,2]
[425814925,1781931767000,-348.73298373,0.00016712,2]
[425814923,1781931767000,-615.22130588,0.00016607,2]
[425814924,1781931767000,-500.0,0.00016712,2]
[425814922,1781931767000,-13492.605769,0.000166,2]
[425814931,1781931767000,-515.30696913,0.00016712,2]
[425814919,1781931767000,-524.68903693,0.00016438,2]
[425814921,1781931767000,-166.798196,0.00016438,2]
[425814913,1781931767000,-500.0,0.00016438,2]
[425814915,1781931767000,-505.14145768,0.00016438,2]
[425814914,1781931767000,-513.58317741,0.00016438,2]
[425814912,1781931767000,-517.85602261,0.00016438,2]
[425814917,1781931767000,-508.83907402,0.00016438,2]
[425814918,1781931767000,-517.12582345,0.00016438,2]
[425814920,1781931767000,-507.79816404,0.00016438,2]
[425814916,1781931767000,-839.550675,0.00016438,2]
[425814950,1781931768000,-500.0,0.00016712,2]
[425814945,1781931768000,-578.32513883,0.00016712,2]
[425814948,1781931768000,-1148.8,0.00016712,2]
[425814949,1781931768000,-1828.33,0.00016712,2]
[425814947,1781931768000,-727.28,0.00016712,2]
[425814946,1781931768000,-500.0,0.00016712,2]
[425814943,1781931768000,-603.56,0.00016712,2]
[425814944,1781931768000,-500.0,0.00016712,2]
[425814942,1781931768000,-500.0,0.00016712,2]
[425814939,1781931768000,-500.0,0.00016712,2]
[425814938,1781931768000,-500.0,0.00016712,2]
[425814940,1781931768000,-500.0,0.00016712,2]
[425814937,1781931768000,-160.90971963,0.00016712,2]
[425814936,1781931768000,-500.0,0.00016712,2]
[425814934,1781931768000,-500.0,0.00016712,2]
[425814935,1781931768000,-500.0,0.00016712,2]
[425814933,1781931768000,-849.63,0.00016712,2]
[425814932,1781931768000,-500.0,0.00016712,2]
[425814953,1781931768000,-1720.19,0.00016712,2]
[425814941,1781931768000,-500.0,0.00016712,2]
[425814952,1781931768000,-500.0,0.00016712,2]
[425814974,1781931768000,-500.0,0.00016712,2]
[425814954,1781931768000,-847.29,0.00016712,2]
[425814972,1781931768000,-744.13,0.00016712,2]
[425814951,1781931768000,-500.0,0.00016712,2]
[425814971,1781931768000,-525.39,0.00016712,2]
[425814969,1781931768000,-500.0,0.00016712,2]
[425814967,1781931768000,-505.39314455,0.00016712,2]
[425814970,1781931768000,-1208.21,0.00016712,2]
[425814968,1781931768000,-500.0,0.00016712,2]
[425814963,1781931768000,-1156.05,0.00016712,2]
[425814966,1781931768000,-500.0,0.00016712,2]
[425814973,1781931768000,-1786.79,0.00016712,2]
[425814964,1781931768000,-500.0,0.00016712,2]
[425814965,1781931768000,-500.0,0.00016712,2]
[425814956,1781931768000,-500.0,0.00016712,2]
[425814957,1781931768000,-1000.0,0.00016712,2]
[425814955,1781931768000,-500.0,0.00016712,2]
[425814958,1781931768000,-2879.56,0.00016712,2]
[425814962,1781931768000,-500.0,0.00016712,2]
[425814960,1781931768000,-692.16,0.00016712,2]
[425814961,1781931768000,-1578.01,0.00016712,2]
[425814959,1781931768000,-1777.37,0.00016712,2]
[425814990,1781931769000,-500.0,0.00016986,2]
[425814988,1781931769000,-500.0,0.00016986,2]
[425814992,1781931769000,-500.0,0.00016986,2]
[425814989,1781931769000,-500.0,0.00016986,2]
[425814985,1781931769000,-849.63,0.00016986,2]
[425814987,1781931769000,-500.0,0.00016986,2]
[425814986,1781931769000,-500.0,0.00016986,2]
[425814984,1781931769000,-500.0,0.00016986,2]
[425814978,1781931769000,-500.0,0.00016986,2]
[425814982,1781931769000,-500.0,0.00016986,2]
[425814981,1781931769000,-500.0,0.00016986,2]
[425814980,1781931769000,-500.0,0.00016986,2]
[425814976,1781931769000,-1841.0,0.00016745,2]
[425814979,1781931769000,-500.0,0.00016986,2]
[425814977,1781931769000,-150.1,0.000169,2]
[425814975,1781931769000,-958.0,0.00016745,2]
[425814991,1781931769000,-500.0,0.00016986,2]
[425814983,1781931769000,-500.0,0.00016986,2]
[425814994,1781931769000,-603.56,0.00016986,2]
[425814995,1781931769000,-500.0,0.00016986,2]
[425815014,1781931769000,-500.0,0.00016986,2]
[425814993,1781931769000,-500.0,0.00016986,2]
[425815013,1781931769000,-1156.05,0.00016986,2]
[425815012,1781931769000,-500.0,0.00016986,2]
[425815010,1781931769000,-692.16,0.00016986,2]
[425815011,1781931769000,-1578.01,0.00016986,2]
[425815008,1781931769000,-2879.56,0.00016986,2]
[425815007,1781931769000,-1000.0,0.00016986,2]
[425815006,1781931769000,-500.0,0.00016986,2]
[425815005,1781931769000,-500.0,0.00016986,2]
[425815009,1781931769000,-1777.37,0.00016986,2]
[425815003,1781931769000,-1720.19,0.00016986,2]
[425815004,1781931769000,-847.29,0.00016986,2]
[425815001,1781931769000,-500.0,0.00016986,2]
[425814998,1781931769000,-1148.8,0.00016986,2]
[425815000,1781931769000,-500.0,0.00016986,2]
[425814999,1781931769000,-1828.33,0.00016986,2]
[425814997,1781931769000,-727.28,0.00016986,2]
[425815002,1781931769000,-500.0,0.00016986,2]
[425814996,1781931769000,-500.0,0.00016986,2]
[425815027,1781931770000,-500.0,0.0001726,2]
[425815026,1781931770000,-500.0,0.0001726,2]
[425815029,1781931770000,-500.0,0.0001726,2]
[425815033,1781931770000,-500.0,0.0001726,2]
[425815031,1781931770000,-500.0,0.0001726,2]
[425815030,1781931770000,-320.2198984,0.0001726,2]
[425815028,1781931770000,-500.0,0.0001726,2]
[425815032,1781931770000,-849.63,0.0001726,2]
[425815025,1781931770000,-529.27894046,0.0001726,2]
[425815015,1781931770000,-500.0,0.00016986,2]
[425815022,1781931770000,-1786.79,0.00016986,2]
[425815021,1781931770000,-744.13,0.00016986,2]
[425815023,1781931770000,-500.0,0.00016986,2]
[425815020,1781931770000,-525.39,0.00016986,2]
[425815019,1781931770000,-1208.21,0.00016986,2]
[425815017,1781931770000,-208.78,0.00016986,2]
[425815016,1781931770000,-500.0,0.00016986,2]
[425815034,1781931770000,-443.67970448,0.0001726,2]
[425815024,1781931770000,-615.22130588,0.00017055,2]
[425815035,1781931770000,-500.0,0.0001726,2]
[425815018,1781931770000,-500.0,0.00016986,2]
[425815036,1781931770000,-500.0,0.0001726,2]
[425815037,1781931770000,-500.0,0.0001726,2]
[425815055,1781931770000,-2879.56,0.0001726,2]
[425815054,1781931770000,-1000.0,0.0001726,2]
[425815053,1781931770000,-500.0,0.0001726,2]
[425815052,1781931770000,-500.0,0.0001726,2]
[425815057,1781931770000,-692.16,0.0001726,2]
[425815051,1781931770000,-847.29,0.0001726,2]
[425815048,1781931770000,-500.0,0.0001726,2]
[425815049,1781931770000,-500.0,0.0001726,2]
[425815050,1781931770000,-1720.19,0.0001726,2]
[425815056,1781931770000,-1777.37,0.0001726,2]
[425815044,1781931770000,-727.28,0.0001726,2]
[425815045,1781931770000,-1148.8,0.0001726,2]
[425815043,1781931770000,-500.0,0.0001726,2]
[425815046,1781931770000,-1828.33,0.0001726,2]
[425815039,1781931770000,-500.0,0.0001726,2]
[425815041,1781931770000,-603.56,0.0001726,2]
[425815042,1781931770000,-500.0,0.0001726,2]
[425815038,1781931770000,-500.0,0.0001726,2]
[425815047,1781931770000,-500.0,0.0001726,2]
[425815040,1781931770000,-215.18113962,0.0001726,2]
[425815070,1781931771000,-3371.151442,0.000173,2]
[425815071,1781931771000,-1000.0,0.00017376,2]
[425815075,1781931771000,-500.0,0.00017534,2]
[425815073,1781931771000,-500.0,0.00017534,2]
[425815074,1781931771000,-500.0,0.00017534,2]
[425815069,1781931771000,-500.0,0.0001726,2]
[425815072,1781931771000,-311.53,0.00017392,2]
[425815068,1781931771000,-1786.79,0.0001726,2]
[425815063,1781931771000,-500.0,0.0001726,2]
[425815066,1781931771000,-525.39,0.0001726,2]
[425815067,1781931771000,-744.13,0.0001726,2]
[425815064,1781931771000,-500.0,0.0001726,2]
[425815060,1781931771000,-1156.05,0.0001726,2]
[425815062,1781931771000,-500.0,0.0001726,2]
[425815061,1781931771000,-500.0,0.0001726,2]
[425815059,1781931771000,-500.0,0.0001726,2]
[425815058,1781931771000,-1578.01,0.0001726,2]
[425815076,1781931771000,-500.0,0.00017534,2]
[425815065,1781931771000,-1208.21,0.0001726,2]
[425815079,1781931771000,-500.0,0.00017534,2]
[425815086,1781931771000,-500.0,0.00017534,2]
[425815077,1781931771000,-500.0,0.00017534,2]
[425815099,1781931771000,-2879.56,0.00017534,2]
[425815097,1781931771000,-500.0,0.00017534,2]
[425815098,1781931771000,-1000.0,0.00017534,2]
[425815095,1781931771000,-847.29,0.00017534,2]
[425815096,1781931771000,-500.0,0.00017534,2]
[425815080,1781931771000,-500.0,0.00017534,2]
[425815094,1781931771000,-1720.19,0.00017534,2]
[425815090,1781931771000,-1828.33,0.00017534,2]
[425815092,1781931771000,-500.0,0.00017534,2]
[425815093,1781931771000,-500.0,0.00017534,2]
[425815089,1781931771000,-1148.8,0.00017534,2]
[425815091,1781931771000,-500.0,0.00017534,2]
[425815083,1781931771000,-500.0,0.00017534,2]
[425815081,1781931771000,-500.0,0.00017534,2]
[425815082,1781931771000,-500.0,0.00017534,2]
[425815078,1781931771000,-849.63,0.00017534,2]
[425815087,1781931771000,-500.0,0.00017534,2]
[425815088,1781931771000,-727.28,0.00017534,2]
[425815085,1781931771000,-603.56,0.00017534,2]
[425815084,1781931771000,-500.0,0.00017534,2]
[425815110,1781931772000,-525.39,0.00017534,2]
[425815114,1781931772000,-500.0,0.00017808,2]
[425815115,1781931772000,-500.0,0.00017808,2]
[425815116,1781931772000,-500.0,0.00017808,2]
[425815113,1781931772000,-500.0,0.00017534,2]
[425815112,1781931772000,-1786.79,0.00017534,2]
[425815111,1781931772000,-744.13,0.00017534,2]
[425815106,1781931772000,-500.0,0.00017534,2]
[425815117,1781931772000,-500.0,0.00017808,2]
[425815107,1781931772000,-500.0,0.00017534,2]
[425815105,1781931772000,-500.0,0.00017534,2]
[425815104,1781931772000,-1156.05,0.00017534,2]
[425815102,1781931772000,-1578.01,0.00017534,2]
[425815101,1781931772000,-692.16,0.00017534,2]
[425815103,1781931772000,-500.0,0.00017534,2]
[425815100,1781931772000,-1777.37,0.00017534,2]
[425815109,1781931772000,-1208.21,0.00017534,2]
[425815121,1781931772000,-500.0,0.00017808,2]
[425815108,1781931772000,-500.0,0.00017534,2]
[425815118,1781931772000,-500.0,0.00017808,2]
[425815120,1781931772000,-475.81318138,0.00017808,2]
[425815136,1781931772000,-847.29,0.00017808,2]
[425815135,1781931772000,-1720.19,0.00017808,2]
[425815134,1781931772000,-500.0,0.00017808,2]
[425815132,1781931772000,-500.0,0.00017808,2]
[425815131,1781931772000,-1828.33,0.00017808,2]
[425815137,1781931772000,-500.0,0.00017808,2]
[425815128,1781931772000,-500.0,0.00017808,2]
[425815133,1781931772000,-500.0,0.00017808,2]
[425815129,1781931772000,-727.28,0.00017808,2]
[425815130,1781931772000,-1148.8,0.00017808,2]
[425815123,1781931772000,-500.0,0.00017808,2]
[425815122,1781931772000,-500.0,0.00017808,2]
[425815124,1781931772000,-500.0,0.00017808,2]
[425815119,1781931772000,-849.63,0.00017808,2]
[425815127,1781931772000,-500.0,0.00017808,2]
[425815126,1781931772000,-603.56,0.00017808,2]
[425815125,1781931772000,-500.0,0.00017808,2]
[425815149,1781931773000,-500.0,0.00017808,2]
[425815153,1781931773000,-1786.79,0.00017808,2]
[425815154,1781931773000,-500.0,0.00017808,2]
[425815155,1781931773000,-158.4,0.00017808,2]
[425815152,1781931773000,-744.13,0.00017808,2]
[425815151,1781931773000,-525.39,0.00017808,2]
[425815150,1781931773000,-1208.21,0.00017808,2]
[425815148,1781931773000,-500.0,0.00017808,2]
[425815147,1781931773000,-500.0,0.00017808,2]
[425815139,1781931773000,-1000.0,0.00017808,2]
[425815145,1781931773000,-1156.05,0.00017808,2]
[425815144,1781931773000,-500.0,0.00017808,2]
[425815142,1781931773000,-692.16,0.00017808,2]
[425815141,1781931773000,-1777.37,0.00017808,2]
[425815143,1781931773000,-1578.01,0.00017808,2]
[425815140,1781931773000,-2879.56,0.00017808,2]
[425815138,1781931773000,-500.0,0.00017808,2]
[425815156,1781931773000,-150.1,0.000179,2]
[425815146,1781931773000,-500.0,0.00017808,2]
[425815157,1781931773000,-10000.3019241,0.00018,2]
[425815158,1781931773000,-1198.03253834,0.00018,2]
[425815178,1781931773000,-500.0,0.00018082,2]
[425815160,1781931773000,-500.0,0.00018082,2]
[425815179,1781931773000,-500.0,0.00018082,2]
[425815175,1781931773000,-1148.8,0.00018082,2]
[425815177,1781931773000,-500.0,0.00018082,2]
[425815176,1781931773000,-1828.33,0.00018082,2]
[425815174,1781931773000,-727.28,0.00018082,2]
[425815173,1781931773000,-500.0,0.00018082,2]
[425815170,1781931773000,-500.0,0.00018082,2]
[425815172,1781931773000,-500.0,0.00018082,2]
[425815171,1781931773000,-603.56,0.00018082,2]
[425815167,1781931773000,-500.0,0.00018082,2]
[425815169,1781931773000,-500.0,0.00018082,2]
[425815164,1781931773000,-500.0,0.00018082,2]
[425815161,1781931773000,-500.0,0.00018082,2]
[425815162,1781931773000,-500.0,0.00018082,2]
[425815159,1781931773000,-615.22130588,0.00018,2]
[425815166,1781931773000,-500.0,0.00018082,2]
[425815165,1781931773000,-849.63,0.00018082,2]
[425815168,1781931773000,-500.0,0.00018082,2]
[425815163,1781931773000,-500.0,0.00018082,2]
[425815192,1781931774000,-355.47668968,0.00018082,2]
[425815197,1781931774000,-1786.79,0.00018082,2]
[425815194,1781931774000,-500.0,0.00018082,2]
[425815195,1781931774000,-1208.21,0.00018082,2]
[425815196,1781931774000,-525.39,0.00018082,2]
[425815190,1781931774000,-1156.05,0.00018082,2]
[425815193,1781931774000,-500.0,0.00018082,2]
[425815191,1781931774000,-500.0,0.00018082,2]
[425815187,1781931774000,-692.16,0.00018082,2]
[425815201,1781931774000,-1198.03253834,0.000182,2]
[425815188,1781931774000,-1578.01,0.00018082,2]
[425815186,1781931774000,-1777.37,0.00018082,2]